Cogmind - Beta 16.1 @@@ ROGUE MODE // 2026.04.04 @ 18:40:42 Player: SunShine214 Result: Destroyed by G-47 Trooper with Particle Gun Performance ------------- Evolutions (3) 1500 Regions Visited (4) 800 Robots Destroyed (44) 220 Value Destroyed (1292) 1292 Prototype IDs (14) 280 Alien Tech Used (0) 0 Bonus (398) 398 TOTAL SCORE: 4490 Bonus ------- Follower Combat Kills 398 Cogmind --------- Core Integrity 0/700 Matter 197/300 Energy 100/100 System Corruption 76% Temperature Cool (27) Movement Core (350) Ox6 Location -7/Factory Parts ------- > --- POWER (3) -------- (None) > --- PROPULSION (2) --- (None) > --- UTILITY (3) ------ Large Storage Unit > --- WEAPON (5) ------- (None) > --- INVENTORY (15) --- Light Deuterium Engine Improved VTOL Module Improved VTOL Module Cryofiber Web Large Storage Unit Light Armor Plating Reflective Plating Power Bank Lightning Gun Lightning Gun Lightning Gun Lightning Gun Missile Launcher Axe Peak State ------------ > --- POWER ------------ Improved Ion Engine > --- PROPULSION ------- Improved Treads Advanced Treads > --- UTILITY ---------- Large Storage Unit Advanced Visual Processing Unit Improved Sensor Array > --- WEAPON ----------- 1B-0RG's Assimilator > --- INVENTORY -------- Improved Treads Titanium Leg Improved VTOL Module Improved VTOL Module Large Storage Unit Sensor Array Light Armor Plating Reflective Plating Power Bank Lightning Gun Lightning Gun Lightning Gun Lightning Gun Axe Axe [Rating: 84] Favorites ----------- Power Light Nuclear Core Engine Ion Engine Power Core Light Nuclear Core Propulsion Improved Treads Treads Improved Treads Leg Titanium Leg Utility Large Storage Unit Device Sensor Array Storage Large Storage Unit Processor Advanced Visual Processing Unit Protection Light Armor Plating Weapon EM Shotgun Energy Gun EM Shotgun Energy Cannon Beam Cannon Ballistic Gun Assault Rifle Launcher Grenade Launcher Special Weapon Mining Laser Slashing Weapon Axe Special Melee Weapon 1B-0RG's Assimilator Build | -11 -10 -10 -8 -7 ------- Run | Yrd Mat Sub Mat Fac Slots Evolved 6 | . . . 4 2 Power 2 | . . . . 2 Propulsion . | . . . . . Utility 1 | . . . 1 . Weapon 3 | . . . 3 . Parts Attached 46 | 7 17 7 15 . Power 5 | 1 2 . 2 . Engine 4 | 1 1 . 2 . Core 1 | . 1 . . . Reactor . | . . . . . Propulsion 11 | 2 4 . 5 . Treads 10 | 2 4 . 4 . Leg 1 | . . . 1 . Wheel . | . . . . . Hover . | . . . . . Flight . | . . . . . Utility 13 | 2 4 3 4 . Device 3 | 1 . 1 1 . Storage 4 | 1 2 . 1 . Processor 4 | . 2 1 1 . Hackware . | . . . . . Protection 2 | . . 1 1 . Artifact . | . . . . . Weapon 17 | 2 7 4 4 . Energy Gun 5 | 1 2 2 . . Energy Cannon 2 | . 2 . . . Ballistic Gun 2 | 1 1 . . . Ballistic Cannon . | . . . . . Launcher 2 | . 1 1 . . Special Weapon 1 | . 1 . . . Impact Weapon . | . . . . . Slashing Weapon 4 | . . 1 3 . Piercing Weapon . | . . . . . Special Melee Weapon 1 | . . . 1 . Unidentified Prototypes 1 | . . . 1 . Parts Lost 19 | . 2 5 12 . Power 3 | . 1 1 1 . Propulsion 5 | . . 1 4 . Utility 3 | . . . 3 . Weapon 8 | . 1 3 4 . Highest Loss Streak 6 | . 1 2 6 . To Critical Strikes 1 | . . 1 . . Average Backups 9 | 1 10 9 10 14 Power . | . . . . 1 Propulsion 2 | . 2 2 2 2 Utility 3 | . 3 3 3 5 Weapon 3 | 1 4 2 3 6 Tool/Special . | . . . . . Unused Backups 17 | . 2 3 . 12 Power 1 | . . . . 1 Propulsion 5 | . 2 1 . 2 Utility 5 | . . 1 . 4 Weapon 6 | . . 1 . 5 Tool/Special . | . . . . . Average Slot Usage (%) 82 | . 97 90 61 14 Engine 3 | . 6 . 7 . Core 4 | . 5 6 . . Treads 24 | . 28 26 17 6 Device 9 | . 5 13 8 . Storage 12 | . 14 14 9 7 Processor 3 | . 8 . 6 . Energy Gun 9 | . 8 13 . . Energy Cannon 2 | . 8 . . . Launcher 8 | . 6 13 1 . Special Melee Weapon 1 | . . . 6 . Peak Build Rating 84 | 9 15 20 84 8 Average Rating 25 | 7 11 17 65 7 On Entrance 9 | . 9 15 15 8 Avg Prop Armor Cover (%) . | . . . . . Naked Turns . | . . . . . Heaviest Build 86 | 15 31 32 86 20 Greatest Support 46 | 40 46 46 46 23 Greatest Overweight (x) 3 | . . 1 3 . Average Overweight (x) . | . . . . . Largest Inventory Capacity 15 | 8 15 15 15 15 Average Capacity 14 | 6 12 15 15 15 Most Carried 15 | 3 15 15 15 14 Average Carried 11 | 1 10 12 11 14 Final Capacity 15 | 8 15 15 15 15 Final Carried 15 | 3 15 11 14 14 Class Distribution -------------------- 100% | Mutant Dominant Class ---------------- Mutant | -10/Materials Mutant | -10/Subcaves Mutant | -8/Materials Mutant | -7/Factory Resources | -11 -10 -10 -8 -7 ----------- Run | Yrd Mat Sub Mat Fac Matter Collected 1747 | 312 184 542 709 . Remotely . | . . . . . Salvage Created 1347 | 221 441 417 268 . Parts 79 | 10 36 23 10 . Haulers Intercepted . | . . . . . Recyclers Shooed 1 | . 1 . . . Parts Field Recycled . | . . . . . Retrieved Matter . | . . . . . Parts Self-Destructed 8 | . . 8 . . Prevented . | . . . . . Parts Restored . | . . . . . Kills | -11 -10 -10 -8 -7 ------- Run | Yrd Mat Sub Mat Fac Combat Hostiles Destroyed 30 | . 12 12 6 . Melee 4 | . . . 4 . Guns 5 | . 2 3 . . Cannons 3 | . 3 . . . AOE 18 | . 7 9 2 . Classes Destroyed 12 | 2 6 2 2 . Worker 1 | . 1 . . . Builder 1 | . 1 . . . Tunneler 7 | 5 2 . . . Recycler 1 | 1 . . . . Operator 1 | . 1 . . . Watcher 3 | . 3 . . . Swarmer 3 | . 3 . . . Grunt 13 | . 9 . 4 . Brawler 1 | . . . 1 . Sentry 1 | . . . 1 . Cobbler 1 | . . 1 . . Subdweller 12 | . . 12 . . Best Kill Streak 6 | 3 6 2 3 . Combat Bots Only 5 | . 5 2 3 . Max Kills in Single Turn 4 | 1 4 1 1 . Gunslinging . | . . . . . Exploded 3 | . 3 1 1 . Melee 1 | . . . 1 . Uniques/NPCs Destroyed . | . . . . . Combat | -11 -10 -10 -8 -7 -------- Run | Yrd Mat Sub Mat Fac Hostile Shots Fired 236 | . 40 39 137 20 Missed 81 | . 14 14 45 8 Hits 155 | . 26 25 92 12 Melee 4 | . . . 4 . Projectile 151 | . 26 25 88 12 AOE 1 | . . 1 . . Critical Strikes 11 | . 2 1 6 2 Damage Taken 3861 | . 520 693 1846 802 Core 1298 | . 55 147 385 711 Absorbed by Shields . | . . . . . Regen/Repaired (Parts) 127 | . . . 127 . Core Remaining (%) 49 | 100 . 19 30 . Volleys Fired 97 | 14 43 36 4 . Largest 2 | 2 2 2 1 . Hottest 160 | 60 160 75 30 . Shots Fired 173 | 28 83 58 4 . Gun 100 | 28 41 31 . . Cannon 20 | . 20 . . . Launcher 52 | . 21 27 4 . Special 1 | . 1 . . . Kinetic 30 | 14 16 . . . Thermal 28 | . 28 . . . Explosive 52 | . 21 27 4 . Electromagnetic 63 | 14 18 31 . . Robot Hit Streak 15 | 6 8 15 5 . Robot Miss Streak 4 | 2 4 2 . . Penetration Max . | . . . . . Secondary Targets 1 | . 1 . . . Max Gunslinging Chain 1 | . 1 . . . Shots Hit Robots 126 | 19 38 46 23 . Core Hits 88 | 6 32 30 20 . Critical Kills . | . . . . . Critical Parts Destroyed . | . . . . . Critical Strikes 3 | . . . 3 . Sever 3 | . . . 3 . Melee Attacks 37 | . . 11 26 . Impact . | . . . . . Slashing 37 | . . 11 26 . Piercing . | . . . . . Sneak Attacks 1 | . . 1 . . Combat Hostiles . | . . . . . Follow-up Attacks 1 | . . . 1 . Damage Inflicted 4046 | 243 1183 1472 1069 79 Guns 791 | 243 254 294 . . Cannons 229 | . 229 . . . Explosions 2346 | . 693 1178 475 . Melee 594 | . . . 594 . Ramming 86 | . 7 . . 79 Kinetic 266 | 140 126 . . . Thermal 299 | . 299 . . . Explosive 2346 | . 693 1178 475 . Electromagnetic 455 | 103 58 294 . . Impact . | . . . . . Slashing 594 | . . . 594 . Piercing . | . . . . . Highest Corruption 76 | . . . . 76 Average Corruption 39 | . . . . 39 Corruption Purged . | . . . . . Corruption Blocked . | . . . . . Effects 11 | . . . . 11 Message Errors 3 | . . . . 3 Matter Fused 3 | . . . . 3 Heat Flow Errors 1 | . . . . 1 Energy Discharges 1 | . . . . 1 Parts Rejected 1 | . . . . 1 Data Loss (minor) 1 | . . . . 1 Data Loss (major) 1 | . . . . 1 Overload Shots . | . . . . . Overflow Damage 4 | . 2 . 2 . Projectiles . | . . . . . Explosions 4 | . 2 . 2 . Melee . | . . . . . Knockbacks . | . . . . . Impact . | . . . . . Kinetic . | . . . . . Secondary . | . . . . . Self-Inflicted Damage 296 | . 97 37 83 79 Shots 12 | . 6 2 4 . Rammed 2 | . 2 . . . Targets Rammed 2 | . 2 . . . Kicked . | . . . . . Crushed . | . . . . . Highest Temperature 318 | . 318 . 11 89 Average Temperature 63 | . 69 . 5 55 Received Heat Transfer 1056 | . 189 111 612 144 Siege Activations . | . . . . . Martial Activations . | . . . . . Shielding Activations . | . . . . . Robots Disrupted . | . . . . . Combat Hostiles . | . . . . . Robots Corrupted . | . . . . . Combat Hostiles . | . . . . . Parts Fried . | . . . . . Impact Corruptions . | . . . . . Robots Melted . | . . . . . Combat Hostiles . | . . . . . Parts Melted 1 | . 1 . . . Heat Transferred 631 | . 631 . . . Parts Sabotaged . | . . . . . Parts Stolen . | . . . . . Parts Stripped . | . . . . . Power Chain Reactions . | . . . . . Alert | -11 -10 -10 -8 -7 ------- Run | Yrd Mat Sub Mat Fac Maximum Alert Level 1 | . . . 1 . Low Security (%) 97 | 100 100 . 94 100 Level 1 2 | . . . 5 . Level 2 . | . . . . . Level 3 . | . . . . . Level 4 . | . . . . . Level 5 . | . . . . . High Security . | . . . . . Max Security . | . . . . . Peak Influence 224 | 5 126 . 224 16 Initial 16 | . . . . 16 Average 58 | 1 29 . 114 1 Influence Increases 1190 | 30 486 . 674 . Destroy 0b10 Robot/C 580 | . 240 . 340 . Destroy 0b10 Robot/NC 90 | 30 40 . 20 . Destroy Leader 144 | . 46 . 98 . Allied During Kill 34 | . . . 34 . Successful Hack 39 | . 31 . 8 . Disable Machine 60 | . 30 . 30 . Destroy Structure 108 | . 84 . 24 . Lose Combat Pursuer 135 | . 15 . 120 . Influence Decreases 1190 | 30 411 75 638 36 Entered New Map 57 | . . 37 . 20 Time Decay 827 | 30 315 38 428 16 Lost Part 130 | . 20 . 110 . Lost Ally 100 | . . . 100 . Purge Threat 76 | . 76 . . . Squads Dispatched 6 | . 1 . 5 . Investigation 2 | . 1 . 1 . Extermination . | . . . . . Reinforcement 3 | . . . 3 . Assault . | . . . . . Garrison 1 | . . . 1 . Intercept . | . . . . . Searches Triggered . | . . . . . Construction Impeded . | . . . . . Haulers Reinforced . | . . . . . Active Scanning Responses . | . . . . . Cargo Convoy Interrupts . | . . . . . Stealth | -11 -10 -10 -8 -7 --------- Run | Yrd Mat Sub Mat Fac Distress Signals 8 | . 2 . 6 . Communications Jammed . | . . . . . Distress Signals . | . . . . . Times Spotted 65 | . 19 11 32 3 Peak Tracking Total 6 | . 6 2 6 3 Tactical Retreats 8 | . 1 . 7 . Traps | -11 -10 -10 -8 -7 ------- Run | Yrd Mat Sub Mat Fac Traps Triggered 4 | . 2 2 . . Indirectly . | . . . . . Trap Hack Attempts . | . . . . . Triggered . | . . . . . Disarmed . | . . . . . Reprogrammed . | . . . . . Reused . | . . . . . Traps Extracted . | . . . . . Installed . | . . . . . Triggered . | . . . . . Machines | -11 -10 -10 -8 -7 ---------- Run | Yrd Mat Sub Mat Fac Machines Disabled 6 | . 3 1 2 . Max in Single Turn 1 | . 1 1 . . Garrison Access 1 | . . . 1 . Machines Repaired . | . . . . . Machines Dismantled . | . . . . . Machines Sabotaged . | . . . . . Overloaded Fab Kills . | . . . . . Hacking | -11 -10 -10 -8 -7 --------- Run | Yrd Mat Sub Mat Fac Machines Accessed 13 | . 8 3 2 . Terminals 8 | . 7 . 1 . Fabricators . | . . . . . Repair Stations . | . . . . . Recycling Units 1 | . 1 . . . Scanalyzers . | . . . . . Garrison Access 1 | . . . 1 . Total Hacks 23 | . 16 3 4 . Successful 12 | . 7 3 2 . Failed 11 | . 9 . 2 . Catastrophic 4 | . 4 . . . Database Lockouts . | . . . . . Manual 2 | . 1 . 1 . Terminals 15 | . 14 . 1 . Fabricators . | . . . . . Repair Stations . | . . . . . Recycling Units 2 | . 2 . . . Scanalyzers . | . . . . . Garrison Access 3 | . . . 3 . Terminal Hacks 10 | . 6 3 1 . Record 1 | . . 1 . . Open Door 1 | . . 1 . . Branch Access Points 1 | . . . 1 . Unreport Threat 1 | . 1 . . . Locate Traps 1 | . 1 . . . Transport Status 1 | . 1 . . . Hauler Manifests 1 | . 1 . . . Registered Components 1 | . 1 . . . Zone Layout 1 | . 1 . . . Proto ID Catalog 1 | . . 1 . . Fabricator Hacks . | . . . . . Repair Station Hacks . | . . . . . Recycling Unit Hacks 1 | . 1 . . . Retrieve Components 1 | . 1 . . . Scanalyzer . | . . . . . Garrison Access Hacks 1 | . . . 1 . Seal Access 1 | . . . 1 . Unauthorized Hacks . | . . . . . Terminals . | . . . . . Fabricators . | . . . . . Repair Stations . | . . . . . Recycling Units . | . . . . . Scanalyzers . | . . . . . Garrison Access . | . . . . . Data Cores Recovered 1 | . 1 . . . Used . | . . . . . Hacking Detections 6 | . 4 . 2 . Full Trace Events 2 | . 2 . . . Feedback Events . | . . . . . Feedback Blocked . | . . . . . Robot Schematics Acquired . | . . . . . Robots Built . | . . . . . Authchips . | . . . . . Time . | . . . . . Total Robot Build Rating . | . . . . . Part Schematics Acquired . | . . . . . Parts Built . | . . . . . Authchips . | . . . . . Time . | . . . . . Total Part Build Rating . | . . . . . Part Studies Acquired . | . . . . . Parts Repaired . | . . . . . Time . | . . . . . Parts Recycled . | . . . . . Recycled Matter . | . . . . . Retrieved Matter . | . . . . . Retrieved Components 9 | . 9 . . . Parts Scanalyzed . | . . . . . Part Schematics Acquired . | . . . . . Parts Damaged . | . . . . . Bothacking | -11 -10 -10 -8 -7 ------------ Run | Yrd Mat Sub Mat Fac Used RIF Installer . | . . . . . Robots Hacked . | . . . . . Non-combat . | . . . . . Combat . | . . . . . Robot Hacks Applied . | . . . . . Relay Couplers Released . | . . . . . Fabnet Peak Effective % . | . . . . . Robots Rewired . | . . . . . Allies Hacked . | . . . . . Hacks Repelled . | . . . . . Allies | -11 -10 -10 -8 -7 -------- Run | Yrd Mat Sub Mat Fac Total Allies . | . . . . . Largest Group . | . . . . . Highest-Rated Group . | . . . . . Highest-Rated Ally . | . . . . . Total Orders 1 | . . . 1 . DROP 1 | . . . 1 . Ally Attacks 76 | . . . 76 . Total Damage 1069 | . . . 1069 . Kills 15 | . . . 15 . Allies Corrupted . | . . . . . Allies Melted . | . . . . . Borg Created 5 | . . . 5 . Largest Collective 3 | . . . 3 . Intel | -11 -10 -10 -8 -7 ------- Run | Yrd Mat Sub Mat Fac Active Infowar (turns) 4761 | 184 510 2847 1220 . Optics 922 | . . . 922 . Sensors 4067 | . . 2847 1220 . Terrain 694 | 184 510 . . . Robot Analysis Total . | . . . . . Derelict Logs Recovered 1 | . . 1 . . Drone Launches . | . . . . . Drone Recoveries . | . . . . . Exploration | -11 -10 -10 -8 -7 ------------- Run | Yrd Mat Sub Mat Fac Turns Passed 6053 | 244 1328 3004 1223 254 Spaces Moved 2980 | 121 709 1675 473 2 Core 4 | 4 . . . . Treads 2976 | 117 709 1675 473 2 Legs . | . . . . . Wheels . | . . . . . Hover . | . . . . . Flight . | . . . . . Fastest Speed 50 | 50 160 160 152 160 Average Speed 171 | 156 160 165 213 160 Slowest Speed 400 | 160 160 240 400 160 Overloaded Moves . | . . . . . Propulsion Burnouts . | . . . . . Robots Hopped . | . . . . . Potential Cave-ins . | . . . . . Cave-ins Triggered . | . . . . . Exploration Rate (%) 55 | 5 92 81 44 . Regions Visited 4 Branch Regions 1 Pre-discovered Areas . | . . . . . Known Exits Taken 1 | . . 1 . . Unknown Exits Taken 3 | 1 1 . 1 . Scrap Searched 3 | . . 3 . . Spaces Dug 11 | . 11 . . . Terrain Destroyed 264 | . 109 125 30 . Melee . | . . . . . Projectile . | . . . . . AOE 264 | . 109 125 30 . Terrain Rammed 72 | . . . . 72 Walls Destroyed . | . . . . . Machines Disabled . | . . . . . Actions | -11 -10 -10 -8 -7 --------- Run | Yrd Mat Sub Mat Fac Total 3475 | 144 817 1819 621 74 Wait 168 | . 19 78 71 . Move 2976 | 120 708 1674 472 2 Hop . | . . . . . Pick Up 33 | 3 16 2 12 . Fast Attach 15 | 7 1 . 7 . Attach 9 | . 1 3 5 . Detach 3 | . . . 3 . Swap 33 | . 17 9 7 . Drop 22 | . 10 5 7 . Fire 97 | 14 43 36 4 . Melee 36 | . . 11 25 . Ram 72 | . . . . 72 Kick . | . . . . . Crush 2 | . 2 . . . Escape Stasis . | . . . . . Rewire 1 | . . 1 . . Trap . | . . . . . Miscellaneous 8 | . . . 8 . Route ------- -11/Scrapyard -10/Materials (discovered 5 exits: [*Mat x3] / [*Min] / *Sub) -10/Subcaves -8/Materials -7/Factory History --------- Turn | Location | Event 8 | -11/Scrapyard | Discovered new exit (range 15) 245 | -11/Scrapyard | Entered Materials 332 | -10/Materials | Build established: Mutant 446 | -10/Materials | Discovered new exit (range 15) 905 | -10/Materials | Discovered new exit (range 7) 984 | -10/Materials | Discovered new exit (range 14) 1535 | -10/Materials | Discovered new exit (range 3) 1557 | -10/Materials | Discovered new exit (range 11) 1573 | -10/Materials | Entered Subcaves 1597 | -10/Subcaves | Learned Materials terminal intel 1615 | -10/Subcaves | A swath of the cavern ceiling suddenly collapsed 1792 | -10/Subcaves | Visited 4L-MR0's lab 1805 | -10/Subcaves | Found Prototype Special Melee Weapon 1812 | -10/Subcaves | Found Power Bank 2610 | -10/Subcaves | Shifting Twisted Machinery released Battle Rifle 2611 | -10/Subcaves | Shifting Twisted Machinery released Scrap Shield 2686 | -10/Subcaves | Core integrity fell below 50% 3148 | -10/Subcaves | Core integrity fell below 20% 4040 | -10/Subcaves | Discovered new exit (range 10) 4054 | -10/Subcaves | Identified exit to Materials 4577 | -10/Subcaves | Entered Materials 4577 | -8/Materials | Evolved 4 slots: Utility x1, Weapon x3 4578 | -8/Materials | Loaded intel: 12 terminal locations 4772 | -8/Materials | Core integrity fell below 50% 4832 | -8/Materials | Lost 4 parts (1n1u2w) 4895 | -8/Materials | Identified 1B-0RG's Assimilator 4899 | -8/Materials | Assimilating Rogue 3a into Collective. 4907 | -8/Materials | Assimilating Trooper 3a into Collective. 4935 | -8/Materials | Assimilating Transporter 3a into Collective. 4967 | -8/Materials | Garrison activated, responded to threat 5438 | -8/Materials | Assimilating Technician 3a into Collective. 5736 | -8/Materials | Discovered new exit (range 11) 5778 | -8/Materials | Assimilating Shotgunner 3a into Collective. 5785 | -8/Materials | Lost 3 allies 5800 | -8/Materials | Entered Factory 5800 | -7/Factory | Evolved 2 slots: Power x2 5828 | -7/Factory | Lost 6 parts (1p2n2u1w) 5843 | -7/Factory | System corruption reached 10% 5913 | -7/Factory | System corruption reached 30% 5917 | -7/Factory | Core integrity fell below 50% 6046 | -7/Factory | Core integrity fell below 20% 6054 | -7/Factory | Destroyed by G-47 Trooper with Particle Gun Last Messages --------------- 06028_ Destabilizing: System corrupted (+1). 06031_ Slammed into Wall. 06031_ Destabilizing: System corrupted (+1). 06032_ RTZROKP:7RV:KTN%KIAOHV<2ZH 06033_ ALERT: All DSF locations entering lockdown mode. 06035_ Slammed into Wall. 06035_ K-01 Serf cleans the Neutrino Reactor. 06038_ Slammed into Wall. 06042_ Destabilizing: Core damaged (-35). 06045_ Slammed into Wall. 06045_ Destabilizing: Core damaged (-35). 06045_ Destabilizing: System corrupted (+2). 06047_ System corrupted: Broken Imp. Treads rejected. 06047_ Critical hit (Burn: +37). 06049_ Slammed into Wall. 06052_ Destabilizing: System corrupted (+2). 06054_ Critical hit (Burn: +37). Map ----- +----------------------------------------------------+ | ???????????????????????????????????????? | | ???????????????????????????????????????? | | ???????????????????????????????????????? | | ???????????????????????????????????????? | | ???????????????????????????????????????? | | ???????????????????????????????????????? | | ???????????????????????????????????????? | | ???????????????????????????????????????? | | ???????????????????????????????????????? | | ???????????????????????????????????????? | | ???????????????????????????????????????? | | ???????????????????????????????????????? | | ???????????????????????????????????????? | | ???????????????????????????????????????? | | ???????????????????????????????????????? | | ???????????????????????????????????????? | | ???????????????????????????????????????? | | ???????????????????F"#?????????????????? | | ???????????????????""#?????????????????? | | ??????????????????"" #?????????????????? | | ?????????????????? #?????????????????? | | ?????????????????! ??????????????????? | | ????????????????? ???????????????????? | | ???????????????? ????????????????????? | | ????????????####+####??????????????????? | | ????????????# @ #??????????????????? | | ????????????# ####???????????????? | | ????????????# g ""?????????? | | ????????????# g g ????????? | | ??????????? ""?????????? | | ????????? = "??????????? | | ??????? """ """ """ "??????????? | | ????? """ """ """ ??????????? | | ????# ? """ ]] """ """ ??????????? | | ????????""" ]! """ """???? ???????????? | | ???????? ??? ????????????????? | | ???????? ??????????????????????? | | ????????####+## ??????????????????????? | | ??????????????? ??????????????????????? | | ??????????????? ??????????????????????? | | ??????????????? ??????????????????????? | | ??????????????? ??????????????????????? | | ???????????????! ??????????????????????? | | ???????????????????????????????????????? | | ???????????????????????????????????????? | | ???????????????????????????????????????? | | ???????????????????????????????????????? | | ???????????????????????????????????????? | | ???????????????????????????????????????? | | ???????????????????????????????????????? | +----------------------------------------------------+ Best States ------------- Heat Dissipation 34 Energy Generation 14 Energy Capacity 265 Matter Stores 300 Matter Capacity 300 Sight Range 20 Robot Scan Range 15 Terrain Scan Range 16 Terrain Scan Density 10 Armor Coverage 150 Evasion (%) 40 Targeting Accuracy 6 Recoil Reduction 2 Item Schematics ----------------- None Robot Schematics ------------------ None Fabricated ------------ Nothing Repaired ---------- Nothing Studied --------- None Alien Tech Used ----------------- None Achievements -------------- Art Critic Challenges ------------ None Game ------ Seed MeleeServoSink Manual? 0 Play Time 00:28:27 Cumulative 121.0 hours Start 2026.04.03 @ 16:41:12 End 2026.04.04 @ 18:40:42 Sessions 1 Manual Loads 0 Difficulty Rogue Special Mode None Game No. 181 Rogue 181 Adventurer 0 Explorer 0 Win Type - Total 1 Types 1/0/0/0/0/0/0/0/0/0 Lore% 50 Gallery% 52 Achievement% 39 Wizard Run 0 Options --------- Layout 1 ASCII 0 Keyboard 1 Movement Arrows Keybinds 0 Fullscreen 1 Font 24/Smallcaps Map View 50x35 Zoom Use 0% Tactical HUD 1 Map Filters NONE Filters NONE Steam 1 RUN: 5bf725d3-357c-4e40-b18e-48c3b4e98399